bitfinex/quotes_ETHUSD_20250611
["timestamp","ask_amount","ask_price","bid_price","bid_amount"]
[1749673246024,0.9547,2814.9,2814.1,10.0]
[1749673246223,0.9547,2814.9,2814.2,3.794]
[1749673252348,0.9547,2814.9,2814.5,0.1776]
[1749673255483,0.9547,2814.9,2814.6,3.792]
[1749673255684,0.9837,2815.1,2814.8,0.1776]
[1749673255889,1.1665,2815.1,2814.8,0.1776]
[1749673256460,0.9837,2815.1,2814.8,0.1776]
[1749673257290,0.1776,2814.9,2814.4,0.1776]
[1749673257535,0.9558,2814.8,2814.4,0.1776]
[1749673259179,0.9558,2814.6,2814.2,0.1776]
[1749673260474,0.9558,2814.6,2814.1,3.791]
[1749673260681,0.9312,2814.4,2814.0,0.1776]
[1749673261778,0.9312,2814.4,2813.6,0.1776]
[1749673261779,0.1776,2814.1,2813.6,0.1776]
[1749673261990,0.9312,2814.0,2813.6,0.1776]
[1749673265312,0.9312,2814.0,2813.2,1.041]
[1749673265313,0.9312,2814.0,2813.2,3.79]
[1749673265605,12.70630245,2814.3,2813.3,0.1776]
[1749673265606,1.1088,2813.9,2813.3,0.1776]
[1749673269000,0.9312,2813.9,2813.3,2.58619025]
[1749673269201,0.9312,2813.9,2813.6,0.1776]
[1749673269583,1.1772,2814.1,2813.6,0.1776]
[1749673269781,0.9996,2814.3,2814.0,12.70630245]
[1749673270047,1.1772,2814.6,2814.2,0.1776]
[1749673270182,0.9996,2814.6,2814.2,0.1776]
[1749673272578,0.9996,2814.6,2814.1,3.79]
[1749673272782,1.1772,2815.0,2814.4,0.1776]
[1749673277251,0.9996,2815.0,2814.7,0.1776]
[1749673277919,0.6667,2815.2,2814.7,0.1776]
[1749673278118,1.6729,2815.2,2814.7,0.1776]
[1749673280049,0.6667,2815.2,2814.7,1.46599025]
[1749673280343,0.6667,2815.2,2814.7,5.25399025]
[1749673282310,0.6667,2815.2,2814.7,3.9656]
[1749673283607,0.6667,2815.2,2814.7,0.1776]
[1749673283811,0.9754,2815.1,2814.7,3.9646]
[1749673284127,0.9754,2815.1,2814.7,0.1776]
[1749673286320,0.6667,2815.2,2814.7,1.1852]
[1749673286724,0.6667,2815.2,2814.7,0.1776]
[1749673289734,0.6667,2815.2,2814.7,1.38915025]
[1749673289946,0.6667,2815.2,2814.9,0.1776]
[1749673290549,0.6667,2815.2,2815.0,0.9747]
[1749673294843,0.6667,2815.2,2815.1,0.1776]
[1749673297663,0.6667,2815.2,2815.0,9.29442576]
[1749673297862,0.6667,2815.2,2815.1,1.06920005]
[1749673298691,0.6667,2815.2,2815.1,2.06520005]
[1749673299071,0.6667,2815.2,2815.1,3.10020005]
[1749673300205,0.6667,2815.2,2815.1,2.06520005]
[1749673300409,0.6667,2815.2,2815.1,5.815]
[1749673301378,0.6667,2815.2,2815.1,14.13472576]
[1749673302691,0.6667,2815.2,2815.1,14.68472576]
[1749673302900,0.6667,2815.2,2815.1,24.68472576]
[1749673303120,0.6667,2815.2,2815.1,24.13472576]
[1749673303588,0.6667,2815.2,2815.1,15.815]
[1749673303790,0.6667,2815.2,2815.1,19.31572576]
[1749673303985,0.6667,2815.2,2815.1,24.13372576]
[1749673306690,0.6667,2815.2,2815.1,24.31132576]
[1749673307600,0.6667,2815.2,2815.1,3.782]
[1749673307839,0.6667,2815.2,2815.1,4.36343]
[1749673308440,0.84719974,2816.1,2815.1,23.66985576]
[1749673308641,10.9609,2816.5,2815.8,8.31972576]
[1749673308821,0.33262357,2816.4,2815.9,3.782]
[1749673309020,10.9609,2816.5,2815.9,3.782]
[1749673310257,12.17693696,2816.5,2815.9,3.782]
[1749673310767,2.17693696,2816.5,2815.9,3.782]
[1749673313743,0.9609,2816.5,2815.9,3.782]
[1749673313944,0.005,2816.5,2816.4,8.31972576]
[1749673314239,0.005,2816.5,2816.4,12.10072576]
[1749673314659,0.005,2816.5,2816.2,9.30182576]
[1749673314837,0.005,2816.5,2816.2,1.91228258]
[1749673315043,0.005,2816.5,2816.2,0.93018258]
[1749673315267,0.005,2816.5,2816.3,3.781]
[1749673316841,0.005,2816.5,2816.0,9.30182576]
[1749673317029,0.005,2816.5,2816.0,0.9821]
[1749673317231,0.005,2816.5,2815.6,0.9689]
[1749673317232,0.9961,2816.4,2815.6,0.9689]
[1749673317473,0.9961,2816.4,2815.7,3.78]
[1749673317787,0.1768,2816.2,2815.7,3.9568]
[1749673317977,0.1768,2816.2,2815.7,5.38484258]
[1749673319490,0.9961,2816.4,2815.7,5.20804258]
[1749673319646,1.1729,2816.4,2815.8,8.49652576]
[1749673320892,0.9961,2816.4,2816.0,8.31972576]
[1749673321092,0.005,2816.5,2816.1,0.1768]
[1749673321269,0.005,2816.5,2816.2,8.31972576]
[1749673321982,0.005,2816.5,2816.1,0.1768]
[1749673322894,0.005,2816.5,2816.2,3.779]
[1749673323251,0.005,2816.5,2816.2,12.09872576]
[1749673323897,0.005,2816.5,2816.2,8.31972576]
[1749673324057,0.005,2816.5,2816.3,3.779]
[1749673325295,0.005,2816.5,2816.1,0.1768]
[1749673325505,0.005,2816.5,2816.1,3.9558]
[1749673325794,0.005,2816.5,2816.2,9.29162576]
[1749673326523,0.005,2816.5,2816.4,8.31972576]
[1749673326659,0.005,2816.5,2816.4,12.27452576]
[1749673327157,0.005,2816.5,2816.4,13.73623578]
[1749673327557,0.005,2816.5,2816.4,27.28686779]
[1749673327797,0.005,2816.5,2816.4,24.9670335]
[1749673328110,0.005,2816.5,2816.4,28.51766551]
[1749673328469,0.14336581,2818.2,2817.2,0.9719]
[1749673328668,0.9196,2818.1,2817.4,8.31972576]
[1749673329213,0.9196,2818.1,2817.5,3.778]
[1749673329395,0.9196,2818.1,2817.6,8.31972576]
[1749673329570,0.32016581,2818.2,2817.8,8.31972576]
[1749673329766,0.32016581,2818.2,2817.8,12.09772576]
[1749673329971,0.14336581,2818.2,2818.0,8.49652576]
[1749673330171,0.14336581,2818.2,2818.0,0.1768]
[1749673331177,0.1768,2818.0,2817.6,3.777]
[1749673331903,0.1768,2818.0,2817.5,0.1768]
[1749673332109,0.1768,2818.0,2817.5,3.9538]
[1749673332832,0.1768,2818.0,2817.5,3.9528]
[1749673332833,0.981,2817.9,2817.5,3.9528]
[1749673333915,0.981,2817.9,2817.5,0.1768]
[1749673334116,1.1578,2817.9,2817.5,0.1768]
[1749673334930,1.1578,2817.9,2817.4,3.776]
[1749673334931,0.981,2817.9,2817.4,3.776]
[1749673335236,0.1768,2817.7,2817.4,3.776]
[1749673335739,0.1768,2817.7,2817.2,0.1768]
[1749673336043,0.981,2817.1,2816.6,0.1768]
[1749673337036,0.981,2817.1,2816.5,1.031]
[1749673337305,0.1768,2816.9,2816.5,1.031]
[1749673337505,0.1768,2816.9,2816.3,0.1768]
[1749673337506,0.981,2816.8,2815.8,1.9561]
[1749673337753,0.1768,2816.6,2816.1,0.1768]
[1749673340035,0.1768,2816.6,2815.9,3.775]
[1749673340036,0.1768,2816.6,2816.4,8.31972576]
[1749673340247,1.1578,2816.8,2816.4,8.31972576]
[1749673340453,1.1578,2816.8,2816.3,0.1768]
[1749673343216,1.1578,2816.8,2816.4,8.31972576]
[1749673343417,1.1578,2816.8,2816.6,8.31972576]
[1749673343656,0.1768,2816.8,2816.6,8.31972576]
[1749673343832,0.981,2817.1,2816.3,4.7024]
[1749673344017,1.1578,2817.1,2816.5,8.49652576]
[1749673344212,1.1578,2817.1,2816.5,0.1768]
[1749673344460,1.1578,2817.1,2816.5,8.49652576]
[1749673344629,1.1578,2817.1,2816.7,8.31972576]
[1749673344830,0.9919,2817.9,2816.9,8.31972576]
[1749673345155,0.9919,2817.9,2817.2,0.1768]
[1749673345156,0.1768,2817.7,2817.2,0.1768]
[1749673345670,0.1768,2817.3,2817.1,3.775]
[1749673345876,0.1768,2817.3,2816.7,0.1768]
[1749673346176,0.1768,2817.3,2816.8,3.775]
[1749673346177,0.9328,2817.2,2816.8,3.775]
[1749673349649,0.9328,2817.2,2816.7,3.9508]
[1749673350658,0.9328,2817.2,2816.7,0.1768]
[1749673350862,0.9328,2817.2,2816.7,3.9508]
[1749673351263,0.9328,2817.2,2816.7,0.1768]
[1749673351457,0.9328,2817.2,2816.7,3.9508]
[1749673352287,0.1768,2817.3,2816.8,3.774]
[1749673352487,0.9829,2817.8,2817.2,12.6907461]
[1749673352637,2.40591878,2818.2,2816.9,0.9384]
[1749673352638,1.1597,2818.1,2817.6,0.1768]
[1749673353540,1.1597,2818.1,2817.7,3.774]
[1749673355989,1.1597,2818.1,2817.6,0.1768]
[1749673355990,1.1597,2818.1,2817.6,3.9498]
[1749673361309,0.9829,2818.1,2817.2,3.772]
[1749673361610,0.9586,2817.7,2817.3,0.1768]
[1749673364293,0.9586,2817.7,2816.8,0.9884]
[1749673364496,0.1768,2817.5,2817.0,0.1768]
[1749673365529,0.9586,2817.7,2817.2,12.8675461]
[1749673365530,1.1354,2817.7,2817.2,12.8675461]
[1749673365730,0.1768,2817.7,2817.2,14.15430071]
[1749673366039,1.1079,2817.9,2817.4,0.1768]
[1749673366334,1.1079,2817.9,2817.4,3.9478]
[1749673367034,0.1768,2817.9,2817.4,3.9478]
[1749673367701,0.9311,2818.1,2817.4,3.771]
[1749673368005,1.1079,2818.1,2817.6,0.1768]
[1749673369035,0.14336581,2818.2,2817.9,12.6907461]
[1749673369207,0.14336581,2818.2,2818.0,3.771]
[1749673369543,1.14526581,2818.2,2818.0,3.771]
[1749673369908,1.14526581,2818.2,2817.8,3.77]
[1749673370927,1.14526581,2818.2,2817.5,0.9706]
[1749673371132,1.14526581,2818.2,2817.5,5.13613461]
[1749673371340,1.14526581,2818.2,2817.2,8.30581458]
[1749673371507,1.14526581,2818.2,2817.3,3.77]
[1749673373002,1.14526581,2818.2,2817.6,8.30581458]
[1749673373840,1.14526581,2818.2,2817.4,8.30581458]
[1749673376812,0.14336581,2818.2,2818.0,8.30581458]
[1749673377025,0.14336581,2818.2,2817.8,8.30581458]
[1749673377335,0.14336581,2818.2,2817.8,9.60819604]
[1749673377908,0.14336581,2818.2,2818.0,8.30581458]
[1749673379027,0.14336581,2818.2,2818.1,0.1768]
[1749673381441,0.14336581,2818.2,2818.0,3.768]
[1749673381648,0.14336581,2818.2,2818.0,3.9448]
[1749673381875,0.14336581,2818.2,2818.0,5.10076884]
[1749673383302,0.14336581,2818.2,2818.0,3.9448]
[1749673383886,0.14336581,2818.2,2817.7,0.949]
[1749673384053,0.14336581,2818.2,2817.9,0.1768]
[1749673384258,0.959,2818.1,2817.9,0.1768]
[1749673386189,0.959,2818.1,2818.0,8.30581458]
[1749673386364,0.14336581,2818.2,2818.0,8.30581458]
[1749673386710,0.14336581,2818.2,2818.0,9.53087604]
[1749673386887,0.14336581,2818.2,2818.0,9.70767604]
[1749673387202,0.14336581,2818.2,2818.1,3.767]
[1749673387763,0.005,2819.1,2818.2,0.986]
[1749673388038,0.005,2819.1,2818.8,8.30581458]
[1749673388374,0.005,2819.1,2819.0,8.30581458]
[1749673388560,0.005,2819.1,2818.9,3.767]
[1749673389897,0.005,2819.1,2819.0,0.9265]
[1749673390070,0.005,2819.1,2818.9,3.767]
[1749673392567,0.005,2819.1,2819.0,3.766]
[1749673393007,0.005,2819.1,2818.8,0.9265]
[1749673393209,0.005,2819.1,2818.9,3.766]
[1749673393414,0.005,2819.1,2818.6,0.94]
[1749673393603,0.005,2819.1,2818.7,4.99928884]
[1749673393917,0.005,2819.1,2818.6,3.766]
[1749673394614,0.005,2819.1,2818.5,3.766]
[1749673394982,1.0028,2819.0,2818.2,0.9658]
[1749673395200,1.0028,2819.0,2817.9,12.67181363]
[1749673395408,1.0028,2819.0,2817.8,2.02]
[1749673395577,1.0028,2819.0,2817.9,3.766]
[1749673395976,1.0028,2819.0,2817.8,2.46318136]
[1749673396280,1.0028,2819.0,2817.9,3.766]
[1749673396591,1.0028,2819.0,2817.8,2.46318136]
[1749673396592,12.67181363,2819.0,2817.8,1.46918136]
[1749673396895,0.9416,2818.9,2817.6,0.994]
[1749673397214,0.9416,2818.9,2817.8,3.765]
[1749673397824,0.9293,2818.4,2818.0,0.1768]
[1749673405015,0.9452,2818.2,2817.2,0.9891]
[1749673405191,0.1768,2818.0,2817.5,0.11041]
[1749673405814,0.957,2817.9,2817.5,0.11041]
[1749673406015,0.957,2817.9,2817.2,3.765]
[1749673406218,0.1768,2817.8,2817.3,0.1768]
[1749673408419,0.1768,2817.8,2817.4,0.9328]
[1749673408620,0.1768,2817.8,2817.3,0.1768]
[1749673408817,0.9173,2818.2,2817.4,12.67181363]
[1749673409022,0.9173,2818.2,2817.7,0.1768]
[1749673409023,1.0941,2818.2,2817.7,0.1768]
[1749673409228,1.0941,2818.2,2817.7,1.1096]
[1749673409442,1.0941,2818.2,2817.7,9.41222088]
[1749673411324,1.0941,2818.2,2817.7,1.1096]
[1749673412835,1.0941,2818.2,2817.7,0.1768]
[1749673414533,0.9173,2818.2,2817.4,3.764]
[1749673414703,0.9541,2818.0,2817.1,0.9538]
[1749673414899,0.1768,2817.9,2817.3,0.1768]
[1749673416423,0.9541,2818.0,2817.3,12.68092277]
[1749673416589,0.9243,2818.2,2817.8,0.1768]
[1749673417202,0.9243,2818.2,2817.2,2.45147228]
[1749673417456,0.1768,2818.0,2817.5,0.1768]
[1749673419929,1.1565,2817.9,2817.4,0.1768]
[1749673422335,0.9797,2817.4,2816.9,0.1768]
[1749673422551,0.9797,2817.4,2816.4,4.7142]
[1749673422711,0.9797,2817.4,2816.7,0.1768]
[1749673422712,0.1768,2817.2,2816.7,0.1768]
[1749673423157,0.9797,2817.1,2816.7,0.1768]
[1749673426355,0.1768,2817.2,2816.7,0.1768]
[1749673426650,0.952,2817.3,2816.9,0.1768]
[1749673428259,0.1768,2817.5,2816.9,0.1768]
[1749673428260,1.1758,2817.5,2816.9,0.1768]
[1749673429159,0.1768,2817.6,2817.1,12.85772277]
[1749673429354,0.1768,2817.6,2816.4,1.024]
[1749673429355,0.9271,2818.2,2817.4,12.68092277]
[1749673429671,0.1768,2818.0,2817.5,0.1768]
[1749673429823,0.9271,2818.2,2817.5,1.0001]
[1749673430023,1.1039,2818.2,2817.7,0.1768]
[1749673430621,0.1768,2818.2,2817.7,0.1768]
[1749673430919,1.1423,2818.5,2818.0,0.1768]
[1749673431522,0.1768,2818.4,2817.8,3.9398]
[1749673431935,0.1768,2818.4,2817.8,0.1768]
[1749673432136,0.9394,2818.3,2817.4,3.763]
[1749673432364,0.1768,2818.0,2817.5,0.1768]
[1749673436471,0.9372,2817.9,2817.5,0.1768]
[1749673439681,0.9176,2818.1,2817.6,8.30422294]
[1749673439984,0.35304629,2818.5,2817.7,0.1768]
[1749673439985,0.1768,2818.2,2817.7,0.1768]
[1749673440162,0.1768,2818.2,2817.8,8.30422294]
[1749673440479,0.1768,2818.5,2818.0,0.1768]
[1749673441178,0.1768,2818.5,2818.0,8.48102294]
[1749673441364,0.1768,2818.5,2818.0,0.1768]
[1749673442569,1.1545,2818.7,2818.2,0.1768]
[1749673445546,0.9777,2818.7,2817.6,4.7615]
[1749673445854,0.1768,2818.4,2817.9,0.1768]
[1749673446039,1.1737,2818.3,2817.8,0.1768]
[1749673447145,1.1737,2818.3,2817.4,0.9681]
[1749673447146,0.9969,2818.3,2817.6,0.1768]
[1749673447354,0.1768,2818.1,2817.6,0.1768]
[1749673448080,12.6769619,2818.5,2817.0,4.7429]
[1749673448081,1.0085,2818.0,2817.0,4.7429]
[1749673448383,1.0085,2818.0,2817.4,0.1768]
[1749673448384,0.1768,2817.9,2817.4,0.1768]
[1749673450149,0.1768,2817.9,2817.5,0.9791]
[1749673450543,0.1768,2817.9,2817.4,0.1768]
[1749673451379,0.1768,2817.9,2817.0,13.6979619]
[1749673451380,0.9555,2817.8,2816.5,0.9791]
[1749673451593,0.1768,2817.9,2817.0,12.6769619]
[1749673451796,0.1768,2817.9,2817.1,2.24679619]
[1749673452356,0.9555,2818.1,2817.1,2.24679619]
[1749673452960,0.9555,2818.1,2817.4,0.9791]
[1749673453185,1.05867597,2818.7,2817.6,12.6769619]
[1749673453186,0.9555,2818.4,2817.6,12.6769619]
[1749673453387,0.9555,2818.7,2817.7,0.9791]
[1749673453572,0.18024408,2818.6,2817.7,0.9791]
[1749673456848,11.02718485,2818.6,2817.7,0.9791]
[1749673457051,0.84694077,2818.5,2817.7,0.9791]
[1749673457297,1.0047,2818.4,2817.3,0.9985]
[1749673457461,1.85164077,2818.4,2817.4,3.759]
[1749673457648,0.18516408,2818.3,2817.3,0.9985]
[1749673457852,0.18516408,2818.3,2817.3,4.7575]
[1749673457853,1.03210485,2818.3,2817.3,4.7575]
[1749673458080,1.85164077,2818.2,2817.3,4.7575]
[1749673458325,1.85164077,2818.2,2817.3,0.9985]
[1749673458496,0.84694077,2818.1,2817.3,0.9985]
[1749673458661,1.03210485,2818.0,2817.3,0.9985]
[1749673458990,1.03210485,2818.0,2816.9,3.759]
[1749673458991,1.85164077,2817.9,2816.9,3.759]
[1749673459169,1.85164077,2817.9,2817.0,0.9985]
[1749673460071,1.0047,2817.9,2817.0,0.9985]
[1749673460268,1.0047,2817.9,2817.1,1.74344619]
[1749673460489,1.03210485,2818.0,2817.1,1.74344619]
[1749673460670,0.9947,2818.1,2817.2,0.962]
[1749673460991,0.84694077,2818.0,2817.2,0.962]
[1749673461190,0.84694077,2818.0,2817.3,0.962]
[1749673461399,0.84694077,2818.2,2817.9,0.1768]
[1749673461602,0.1768,2818.4,2818.0,0.962]
[1749673462622,0.1768,2818.7,2818.2,0.1768]
[1749673463131,0.1768,2818.7,2818.3,0.962]
[1749673463428,0.84694077,2819.0,2818.4,12.6769619]
[1749673463599,1.88680385,2819.3,2818.9,0.1768]
[1749673463799,1.88680385,2819.3,2818.9,1.1388]
[1749673463972,1.88680385,2819.3,2819.0,0.1768]
[1749673465403,0.9636,2819.1,2817.6,0.936]
[1749673465612,11.21633348,2819.0,2817.8,12.6769619]
[1749673465785,10.9636,2819.1,2817.9,0.936]
[1749673466000,10.9636,2819.1,2818.0,3.758]
[1749673466196,0.9636,2819.1,2818.1,12.6769619]
[1749673467503,0.9636,2819.1,2818.0,4.779]
[1749673467707,0.005,2819.1,2818.2,0.9223]
[1749673468923,0.936,2819.0,2818.2,0.9223]
[1749673469085,0.936,2819.0,2818.0,3.758]
[1749673469086,0.936,2819.0,2818.0,4.7673]
[1749673469573,0.005,2819.1,2818.0,4.7673]
[1749673470386,0.005,2819.1,2818.3,0.9504]
[1749673470587,0.005,2819.1,2818.4,1.36273619]
[1749673471315,0.005,2819.1,2818.5,3.758]
[1749673473739,0.005,2819.1,2818.5,17.4559619]
[1749673473910,0.005,2819.1,2818.6,0.9504]
[1749673475217,0.005,2819.1,2818.7,3.757]
[1749673475413,0.005,2819.1,2818.8,0.1768]
[1749673476286,0.9184,2819.1,2818.8,0.1768]
[1749673477914,1.21660039,2819.1,2818.3,0.9506]
[1749673478243,0.1768,2819.0,2818.5,0.1768]
[1749673478925,0.005,2819.1,2818.3,4.7343]
[1749673479229,0.005,2819.1,2818.9,0.1768]
[1749673479429,0.005,2819.1,2818.9,3.9338]
[1749673486904,1.0055,2819.0,2818.6,0.1768]
[1749673487102,0.1768,2818.9,2818.4,0.1768]
[1749673488462,0.005,2819.1,2818.5,13.6062619]
[1749673489712,0.005,2819.1,2818.5,0.9293]
[1749673489912,0.005,2819.1,2818.5,4.6853]
[1749673490841,0.918,2819.1,2818.5,4.6853]
[1749673492008,0.918,2819.1,2818.5,0.9293]
[1749673492226,1.006,2818.0,2817.9,22.6769619]
[1749673492437,1.006,2818.0,2817.7,1.02]
[1749673492641,1.006,2818.0,2817.9,3.756]
[1749673493712,1.006,2818.0,2817.7,1.02]
[1749673493937,1.006,2818.0,2817.8,4.4705]
[1749673494251,1.006,2818.0,2817.9,3.756]
[1749673494401,1.006,2818.0,2817.7,1.02]
[1749673497752,0.9537,2817.9,2817.4,3.756]
[1749673498458,0.9537,2817.9,2817.5,0.1768]
[1749673498865,1.006,2818.0,2817.4,3.756]
[1749673499048,1.006,2818.0,2817.7,0.1768]
[1749673499743,1.006,2818.0,2817.2,1.02]
[1749673500057,0.9288,2817.6,2816.4,5.6552]
[1749673500239,0.9288,2817.6,2816.4,4.7412]
[1749673500443,0.9288,2817.6,2816.2,6.125]
[1749673500643,12.6769619,2817.0,2815.8,0.9852]
[1749673500848,12.6769619,2817.0,2815.6,1.02]
[1749673500849,0.9288,2816.8,2815.6,1.02]
[1749673501028,0.9288,2816.8,2815.5,0.9852]
[1749673501219,0.9288,2816.8,2815.6,3.756]
[1749673501415,10.84741096,2816.9,2815.3,1.02]
[1749673501416,0.9298,2816.6,2815.3,1.02]
[1749673501620,1.28380676,2816.6,2815.4,3.756]
[1749673501830,1.28380676,2816.6,2815.5,12.6769619]
[1749673502031,0.9298,2816.6,2815.5,12.6769619]
[1749673502232,0.9298,2816.6,2815.6,1.64329619]
[1749673502476,0.9298,2816.6,2815.6,0.00484558]
[1749673502966,0.9162,2816.2,2815.6,0.00484558]
[1749673505961,0.9486,2816.0,2815.6,0.00484558]
[1749673507268,0.55,2815.9,2815.6,0.00484558]
[1749673507465,0.9474,2815.8,2815.6,0.00484558]
[1749673507670,10.9474,2815.7,2815.6,0.00484558]
[1749673507868,13.36483619,2815.7,2815.6,0.00484558]
[1749673508281,13.91483619,2815.7,2815.6,0.00484558]
[1749673508589,0.9474,2815.7,2815.6,0.00484558]
[1749673508914,0.9474,2816.6,2815.6,0.00484558]
[1749673509704,0.18498164,2816.5,2815.6,0.00484558]
[1749673510072,0.988,2816.0,2815.6,0.00484558]
[1749673510406,0.1768,2815.8,2815.6,0.00484558]
[1749673510763,0.988,2816.0,2815.6,0.18164558]
[1749673511520,0.988,2816.0,2815.6,0.00484558]
[1749673516090,0.55,2815.9,2815.6,0.00484558]
[1749673516439,0.9282,2815.8,2815.6,0.00484558]
[1749673516621,1.14605854,2815.7,2815.6,0.00484558]
[1749673516832,2.07425854,2815.7,2815.6,0.00484558]
[1749673516994,0.9282,2815.7,2815.6,0.00484558]
[1749673517402,1.4782,2815.7,2815.6,0.00484558]
[1749673517586,0.9282,2815.7,2815.6,0.00484558]
[1749673521733,3.759,2816.1,2815.6,0.00484558]
[1749673521890,0.1768,2815.7,2815.6,0.00484558]
[1749673522636,10.9813,2816.2,2815.6,0.00484558]
[1749673522826,0.1768,2815.9,2815.6,0.00484558]
[1749673526716,2.3146776,2816.1,2815.6,0.00484558]
[1749673526922,0.1768,2815.7,2815.6,0.00484558]
[1749673527326,1.9966476,2815.7,2815.6,0.00484558]
[1749673527726,1.0174476,2815.7,2815.6,0.00484558]
[1749673527929,0.1768,2815.7,2815.6,0.00484558]
[1749673528456,0.9792,2816.0,2815.6,0.00484558]
[1749673528752,1.09228277,2815.9,2815.6,0.00484558]
[1749673528925,0.84695977,2815.8,2815.6,0.00484558]
[1749673529244,0.84958805,2815.7,2815.6,0.00484558]
[1749673531508,1.06005607,2816.1,2815.6,1.01454558]
[1749673531725,0.84957894,2816.0,2815.6,1.01454558]
[1749673531921,0.84957894,2815.9,2815.6,1.01454558]
[1749673532121,1.06005607,2816.2,2815.6,1.01454558]
[1749673532328,10.0,2816.5,2815.6,11.01454558]
[1749673532329,0.84957586,2816.1,2815.6,11.01454558]
[1749673532550,1.06005607,2816.5,2815.6,11.01454558]
[1749673532850,0.84950793,2816.4,2815.6,11.01454558]
[1749673533048,0.84950793,2816.3,2815.6,11.01454558]
[1749673533225,1.98355607,2816.1,2815.6,0.00484558]
[1749673533588,0.84950793,2816.0,2815.6,0.00484558]
[1749673533752,0.84950793,2815.9,2815.6,0.00484558]
[1749673533914,0.84950793,2815.8,2815.6,0.00484558]
[1749673534113,1.06005607,2816.1,2815.6,0.00484558]
[1749673534314,0.84933076,2816.0,2815.6,0.00484558]
[1749673534511,0.84933076,2815.9,2815.6,0.00484558]
[1749673534740,0.84933076,2815.8,2815.6,0.00484558]
[1749673534964,1.06005607,2816.3,2815.7,0.9257]
[1749673535160,0.8492532,2816.2,2815.7,0.9257]
[1749673535373,0.8492532,2816.1,2815.7,0.9257]
[1749673535666,1.06005607,2816.4,2815.7,0.9257]
[1749673535872,0.849186,2816.3,2815.7,0.9257]
[1749673536068,0.849186,2816.2,2815.8,0.00485685]
[1749673536219,0.849186,2816.1,2815.8,0.00485685]
[1749673536419,1.06005607,2816.5,2815.9,12.70446985]
[1749673536624,1.06005607,2816.9,2816.3,0.9143]
[1749673536936,1.06005607,2817.4,2816.7,12.70446985]
[1749673537232,0.84874413,2817.3,2816.8,0.9143]
[1749673537445,0.1768,2817.3,2816.9,0.00485496]
[1749673537770,0.84774431,2817.2,2816.9,0.00485496]
[1749673538065,0.1768,2817.3,2816.9,0.00485496]
[1749673538273,0.84723128,2817.2,2816.9,0.00485496]
[1749673538435,0.1768,2817.3,2816.9,0.00485496]
[1749673538640,0.84723813,2817.2,2816.9,0.00485496]
[1749673538837,0.1768,2817.3,2816.9,0.00485496]
[1749673539134,0.1768,2817.1,2816.9,0.00485496]
[1749673544476,0.1768,2817.3,2816.9,0.00485496]
[1749673550949,0.1768,2817.3,2817.0,1.009]
[1749673551382,0.1768,2817.3,2817.1,0.00484939]
[1749673552484,0.9445,2817.8,2817.2,0.1768]
[1749673552485,0.1768,2817.8,2817.2,0.1768]
[1749673552849,0.1768,2817.8,2817.3,0.00484905]
[1749673555400,1.006,2818.0,2817.4,0.9994]
[1749673555569,1.006,2818.0,2817.6,0.1768]
[1749673558890,1.004,2817.9,2816.8,0.9932]
[1749673559057,0.1768,2817.4,2816.9,0.1768]
[1749673560081,1.1014,2817.4,2816.9,0.1768]
[1749673560281,0.9246,2817.4,2816.4,10.0]
[1749673560593,0.1768,2817.2,2816.7,0.1768]
[1749673560798,0.1768,2817.0,2816.6,1.0044]
[1749673562496,0.1768,2817.0,2816.7,0.00485245]
[1749673565265,11.39556622,2817.7,2816.8,0.9459]
[1749673565266,1.79586622,2817.7,2816.8,0.9459]
[1749673565467,1.006,2818.0,2817.6,0.1768]
[1749673572872,1.006,2818.0,2817.7,13.70728792]
[1749673573078,1.006,2818.0,2817.9,0.1768]
[1749673576714,1.006,2818.0,2817.9,11.1459]
[1749673576914,1.006,2818.0,2817.9,14.69464197]
[1749673577114,0.1818,2819.1,2818.0,0.9501]
[1749673577422,0.1818,2819.1,2818.3,0.9501]
[1749673577716,0.1818,2819.1,2818.7,0.1768]
[1749673577918,0.1818,2819.1,2818.8,0.9501]
[1749673578117,0.005,2819.1,2818.8,0.9501]
[1749673579906,0.005,2819.1,2818.7,0.1768]
[1749673582211,0.1818,2819.1,2818.7,0.1768]
[1749673582423,0.38866039,2819.1,2818.7,0.1768]
[1749673582740,0.1768,2818.9,2818.4,0.1768]
[1749673584206,12.86893719,2818.9,2818.1,0.9381]
[1749673584511,0.1768,2818.9,2818.1,0.9381]
[1749673584749,0.1768,2818.9,2818.2,0.1768]
[1749673587242,0.1768,2818.9,2818.3,12.69213719]
[1749673587437,0.1768,2818.9,2818.4,1.28689372]
[1749673587621,0.1768,2818.9,2818.5,1.0068]
[1749673590523,0.1768,2818.9,2818.3,3.752]
[1749673591130,0.1768,2818.9,2818.5,0.25]
[1749673597430,0.9788,2818.8,2818.5,0.25]
[1749673597781,1.36709372,2818.7,2818.5,0.25]
[1749673598888,0.1768,2818.6,2818.5,0.25]
[1749673599089,1.1556,2818.8,2818.5,0.25]
[1749673600626,0.9788,2818.8,2818.5,0.25]
[1749673600789,0.1768,2818.6,2818.5,0.25]
[1749673603013,0.36163327,2818.6,2818.5,0.25]
[1749673604679,1.34583327,2818.6,2818.5,0.25]
[1749673604917,1.56511026,2818.6,2818.5,0.25]
[1749673605910,2.11511026,2818.6,2818.5,0.25]
[1749673606111,2.96204687,2818.6,2818.5,0.25]
[1749673609293,12.96204687,2818.6,2818.5,0.25]
[1749673611448,14.01861292,2818.6,2818.5,0.25]
[1749673612300,12.96204687,2818.6,2818.5,0.25]
[1749673612695,14.02161853,2818.6,2818.5,0.25]